Cogmind - Beta 17.1 @@@ ROGUE MODE // 2026.09.07 @ 16:01:22 Player: LandRaider Result: Destroyed by HX-NF2(R) with Subdweller Laser Performance ------------- Evolutions (0) 0 Regions Visited (2) 400 Robots Destroyed (21) 105 Value Destroyed (549) 549 Prototype IDs (0) 0 Alien Tech Used (0) 0 Bonus (5000) 5000 TOTAL SCORE: 6054 Bonus ------- Prayed to X0-1V1 5000 Cogmind --------- Core Integrity 0/150 Matter 257/300 Energy 249/250 System Corruption 0% Temperature Cool (6) Movement Treading (160) Location -10/Subcaves Parts ------- > --- POWER (1) -------- Ion Engine > --- PROPULSION (2) --- Light Treads Light Treads > --- UTILITY (2) ------ Medium Storage Unit Structural Scanner > --- WEAPON (2) ------- Small Laser Beam Cannon > --- INVENTORY (10) --- Wheel Compact Wheel Heat Sink High-capacity Matter Pod (0) ECM Suite X0-1V1's Piety Tracker EM Pulse Gun Grenade Launcher Grenade Launcher Hammer Peak State ------------ > --- POWER ------------ Ion Engine > --- PROPULSION ------- Light Treads Light Treads > --- UTILITY ---------- Medium Storage Unit High-capacity Matter Pod > --- WEAPON ----------- EM Pulse Gun Beam Cannon > --- INVENTORY -------- Wheel Compact Wheel Heat Sink Structural Scanner ECM Suite X0-1V1's Piety Tracker Small Laser Grenade Launcher Grenade Launcher Hammer [Rating: 9] Favorites ----------- Power Ion Engine Engine Ion Engine Propulsion Aluminum Leg Treads Light Treads Leg Aluminum Leg Wheel Wheel Utility Medium Storage Unit Device Structural Scanner Storage Medium Storage Unit Weapon EM Pulse Gun Energy Gun EM Pulse Gun Energy Cannon Beam Cannon Launcher Grenade Launcher Build | -11 -10 -10 ------- Run | Yrd Mat Sub Slots Evolved . | . . . Power . | . . . Propulsion . | . . . Utility . | . . . Weapon . | . . . Parts Attached 24 | 7 14 3 Power 2 | 1 1 . Engine 2 | 1 1 . Core . | . . . Reactor . | . . . Propulsion 8 | 2 6 . Treads 2 | . 2 . Leg 5 | 2 3 . Wheel 1 | . 1 . Hover . | . . . Flight . | . . . Utility 7 | 2 4 1 Device 2 | 1 . 1 Storage 5 | 1 4 . Processor . | . . . Hackware . | . . . Protection . | . . . Artifact . | . . . Weapon 7 | 2 3 2 Energy Gun 4 | 2 1 1 Energy Cannon 1 | . 1 . Ballistic Gun . | . . . Ballistic Cannon . | . . . Launcher 2 | . 1 1 Special Weapon . | . . . Impact Weapon . | . . . Slashing Weapon . | . . . Piercing Weapon . | . . . Special Melee Weapon . | . . . Unidentified Prototypes . | . . . Parts Lost 7 | . 7 . Power 1 | . 1 . Propulsion 3 | . 3 . Utility . | . . . Weapon 3 | . 3 . Highest Loss Streak 4 | . 4 . To Critical Strikes . | . . . Average Backups 7 | 5 7 10 Power . | . . . Propulsion 3 | 3 3 2 Utility 2 | . 2 4 Weapon 1 | 1 1 4 Tool/Special . | . . . Unused Backups 7 | . 2 5 Power . | . . . Propulsion 1 | . . 1 Utility 4 | . 2 2 Weapon 2 | . . 2 Tool/Special . | . . . Average Slot Usage (%) 95 | . 94 100 Engine 13 | . 13 14 Treads 8 | . 4 28 Leg 14 | . 16 . Wheel 3 | . 4 . Device 2 | . 1 9 Storage 23 | . 24 18 Energy Gun 15 | . 17 7 Energy Cannon 7 | . 6 14 Launcher 3 | . 2 6 Peak Build Rating 9 | 7 9 9 Average Rating 7 | 5 7 9 On Entrance 5 | . 7 9 Avg Prop Armor Cover (%) 8 | . 8 . Naked Turns . | . . . Heaviest Build 24 | 14 24 24 Greatest Support 40 | 20 40 40 Greatest Overweight (x) 5 | 4 5 . Average Overweight (x) . | . . . Largest Inventory Capacity 10 | 8 10 10 Average Capacity 9 | 7 9 10 Most Carried 10 | 8 10 10 Average Carried 7 | 5 7 9 Final Capacity 10 | 8 10 10 Final Carried 10 | 8 10 10 Class Distribution -------------------- 100% | Mutant Dominant Class ---------------- Mutant | -10/Materials Mutant | -10/Subcaves Resources | -11 -10 -10 ----------- Run | Yrd Mat Sub Matter Collected 611 | 270 341 . Remotely . | . . . Salvage Created 639 | 154 485 . Parts 33 | 7 26 . Haulers Intercepted 1 | . 1 . Recyclers Shooed 1 | . 1 . Parts Field Recycled . | . . . Retrieved Matter . | . . . Parts Self-Destructed 2 | . . 2 Prevented . | . . . Parts Restored . | . . . Kills | -11 -10 -10 ------- Run | Yrd Mat Sub Combat Hostiles Destroyed 12 | . 12 . Guns 4 | . 4 . Cannons 1 | . 1 . AOE 5 | . 5 . Classes Destroyed 8 | 3 5 . Worker 1 | 1 . . Builder 2 | . 2 . Tunneler 2 | 2 . . Hauler 1 | . 1 . Recycler 1 | 1 . . Mechanic 1 | . 1 . Operator 1 | . 1 . Grunt 12 | . 12 . Best Kill Streak 4 | 2 4 . Combat Bots Only 2 | . 2 . Max Kills in Single Turn 2 | 1 2 . Gunslinging . | . . . Exploded 1 | . 1 . Melee . | . . . Uniques/NPCs Destroyed . | . . . Combat | -11 -10 -10 -------- Run | Yrd Mat Sub Hostile Shots Fired 99 | . 86 13 Missed 28 | . 25 3 Hits 71 | . 61 10 Projectile 71 | . 61 10 Critical Strikes 3 | . 3 . Damage Taken 1017 | . 821 196 Core 251 | . 212 39 Absorbed by Shields . | . . . Core Remaining (%) 100 | 100 . . Volleys Fired 97 | 18 70 9 Largest 2 | 2 2 2 Hottest 100 | 90 100 100 Shots Fired 141 | 21 103 17 Gun 105 | 21 76 8 Cannon 20 | . 12 8 Launcher 16 | . 15 1 Special . | . . . Kinetic . | . . . Thermal 68 | 18 34 16 Explosive 16 | . 15 1 Electromagnetic 57 | 3 54 . Robot Hit Streak 17 | 6 11 17 Robot Miss Streak 3 | 2 3 . Penetration Max . | . . . Secondary Targets . | . . . Shots Hit Robots 96 | 16 64 16 Core Hits 37 | 4 32 1 Critical Kills . | . . . Critical Parts Destroyed . | . . . Critical Strikes 4 | 1 3 . Burn 1 | 1 . . Corrupt 3 | . 3 . Melee Attacks . | . . . Impact . | . . . Slashing . | . . . Piercing . | . . . Sneak Attacks . | . . . Combat Hostiles . | . . . Follow-up Attacks . | . . . Damage Inflicted 2113 | 239 1648 226 Guns 901 | 204 611 86 Cannons 280 | . 140 140 Explosions 932 | 35 897 . Melee . | . . . Ramming . | . . . Kinetic . | . . . Thermal 903 | 199 478 226 Explosive 710 | . 710 . Electromagnetic 500 | 40 460 . Impact . | . . . Slashing . | . . . Piercing . | . . . Highest Corruption . | . . . Average Corruption . | . . . Corruption Purged . | . . . Corruption Blocked . | . . . Overload Shots . | . . . Overflow Damage 5 | 5 . . Projectiles . | . . . Explosions 5 | 5 . . Melee . | . . . Knockbacks . | . . . Impact . | . . . Kinetic . | . . . Secondary . | . . . Self-Inflicted Damage 86 | . 86 . Shots 4 | . 4 . Rammed . | . . . Targets Rammed . | . . . Kicked . | . . . Crushed . | . . . Highest Temperature 470 | 90 470 . Average Temperature 117 | 31 136 . Received Heat Transfer 528 | . 468 60 Effects 8 | . 8 . Shutdowns 2 | . 2 . Energy Bleed 1 | . 1 . Matter Decay 1 | . 1 . Short Circuit 1 | . 1 . Damage (major) 3 | . 3 . Siege Activations . | . . . Martial Activations . | . . . Shielding Activations . | . . . Robots Disrupted . | . . . Combat Hostiles . | . . . Robots Corrupted 2 | . 2 . Combat Hostiles 2 | . 2 . Parts Fried . | . . . Impact Corruptions . | . . . Robots Melted . | . . . Combat Hostiles . | . . . Parts Melted 2 | 2 . . Heat Transferred 2091 | 605 990 496 Parts Sabotaged . | . . . Parts Stolen . | . . . Parts Stripped . | . . . Power Chain Reactions 4 | 1 3 . Alert | -11 -10 -10 ------- Run | Yrd Mat Sub Maximum Alert Level . | . . . Low Security (%) 100 | 100 100 . Level 1 . | . . . Level 2 . | . . . Level 3 . | . . . Level 4 . | . . . Level 5 . | . . . High Security . | . . . Max Security . | . . . Peak Influence 196 | 5 196 . Initial 3 | . 3 . Average 90 | 1 100 . Influence Increases 544 | 20 524 . Destroy 0b10 Robot/C 240 | . 240 . Destroy 0b10 Robot/NC 45 | 20 25 . Destroy Leader 52 | . 52 . Successful Hack 15 | . 15 . Disable Machine 60 | . 60 . Destroy Structure 72 | . 72 . Lose Combat Pursuer 60 | . 60 . Influence Decreases 544 | 15 432 97 Entered New Map 49 | . 2 47 Time Decay 425 | 15 360 50 Lost Part 70 | . 70 . Squads Dispatched 3 | . 3 . Investigation 1 | . 1 . Extermination . | . . . Reinforcement 2 | . 2 . Assault . | . . . Garrison . | . . . Intercept . | . . . Searches Triggered . | . . . Construction Impeded . | . . . Haulers Reinforced . | . . . Active Scanning Responses . | . . . Cargo Convoy Interrupts . | . . . Stealth | -11 -10 -10 --------- Run | Yrd Mat Sub Distress Signals . | . . . Communications Jammed . | . . . Distress Signals . | . . . Times Spotted 22 | . 21 1 Peak Tracking Total 5 | . 5 1 Tactical Retreats 3 | . 3 . Traps | -11 -10 -10 ------- Run | Yrd Mat Sub Traps Triggered 2 | . 2 . Indirectly . | . . . Trap Hack Attempts . | . . . Triggered . | . . . Disarmed . | . . . Reprogrammed . | . . . Reused . | . . . Traps Extracted . | . . . Installed . | . . . Triggered . | . . . Machines | -11 -10 -10 ---------- Run | Yrd Mat Sub Machines Disabled 4 | . 4 . Max in Single Turn 1 | . 1 . Machines Repaired . | . . . Machines Dismantled . | . . . Machines Sabotaged . | . . . Overloaded Fab Kills . | . . . Hacking | -11 -10 -10 --------- Run | Yrd Mat Sub Machines Accessed 2 | . 2 . Terminals 2 | . 2 . Fabricators . | . . . Repair Stations . | . . . Recycling Units . | . . . Scanalyzers . | . . . Garrison Access . | . . . Total Hacks 7 | . 7 . Successful 4 | . 4 . Failed 3 | . 3 . Catastrophic . | . . . Database Lockouts . | . . . Manual 3 | . 3 . Terminals 7 | . 7 . Fabricators . | . . . Repair Stations . | . . . Recycling Units . | . . . Scanalyzers . | . . . Garrison Access . | . . . Terminal Hacks 3 | . 3 . Record 2 | . 2 . Alert Level 1 | . 1 . Fabricator Hacks . | . . . Repair Station Hacks . | . . . Recycling Unit Hacks . | . . . Scanalyzer . | . . . Garrison Access Hacks . | . . . Unauthorized Hacks 1 | . 1 . Terminals 1 | . 1 . Botnet 1 | . 1 . Fabricators . | . . . Repair Stations . | . . . Recycling Units . | . . . Scanalyzers . | . . . Garrison Access . | . . . Data Cores Recovered . | . . . Used . | . . . Hacking Detections 2 | . 2 . Full Trace Events . | . . . Feedback Events . | . . . Feedback Blocked . | . . . Robot Schematics Acquired . | . . . Robots Built . | . . . Authchips . | . . . Time . | . . . Total Robot Build Rating . | . . . Part Schematics Acquired . | . . . Parts Built . | . . . Authchips . | . . . Time . | . . . Total Part Build Rating . | . . . Part Studies Acquired . | . . . Parts Repaired . | . . . Time . | . . . Parts Recycled . | . . . Recycled Matter . | . . . Retrieved Matter . | . . . Retrieved Components . | . . . Parts Scanalyzed . | . . . Part Schematics Acquired . | . . . Parts Damaged . | . . . Bothacking | -11 -10 -10 ------------ Run | Yrd Mat Sub Used RIF Installer . | . . . Robots Hacked . | . . . Non-combat . | . . . Combat . | . . . Robot Hacks Applied . | . . . Relay Couplers Released . | . . . Fabnet Peak Effective % . | . . . Robots Rewired . | . . . Allies Hacked . | . . . Hacks Repelled . | . . . Allies | -11 -10 -10 -------- Run | Yrd Mat Sub Total Allies . | . . . Largest Group . | . . . Highest-Rated Group . | . . . Highest-Rated Ally . | . . . Total Orders . | . . . Ally Attacks . | . . . Total Damage . | . . . Kills . | . . . Allies Corrupted . | . . . Allies Melted . | . . . X0-1V1 Amusement Gains 11 | . 11 . Average Entertainment 6 | . 11 6 Good Acts 1 | . . 1 Intel | -11 -10 -10 ------- Run | Yrd Mat Sub Active Infowar (turns) 315 | 36 114 165 Structural 165 | . . 165 Seismic 150 | 36 114 . Robot Analysis Total . | . . . Derelict Logs Recovered 1 | . . 1 Drone Launches . | . . . Drone Recoveries . | . . . Exploration | -11 -10 -10 ------------- Run | Yrd Mat Sub Turns Passed 1497 | 132 1140 225 Spaces Moved 820 | 59 639 122 Core 31 | 17 14 . Treads 238 | . 116 122 Legs 273 | 42 231 . Wheels 278 | . 278 . Hover . | . . . Flight . | . . . Fastest Speed 50 | 50 95 160 Average Speed 134 | 128 130 160 Slowest Speed 300 | 250 300 160 Overloaded Moves . | . . . Propulsion Burnouts . | . . . Robots Hopped . | . . . Potential Cave-ins . | . . . Cave-ins Triggered . | . . . Exploration Rate (%) 23 | 3 52 14 Regions Visited 2 Branch Regions 1 Pre-discovered Areas . | . . . Known Exits Taken . | . . . Unknown Exits Taken 2 | 1 1 . Scrap Searched . | . . . Spaces Dug . | . . . Terrain Destroyed 98 | 2 90 6 Melee . | . . . Projectile . | . . . AOE 98 | 2 90 6 Terrain Rammed . | . . . Walls Destroyed . | . . . Machines Disabled . | . . . Actions | -11 -10 -10 --------- Run | Yrd Mat Sub Total 1070 | 91 843 136 Wait 97 | . 97 . Move 818 | 58 638 122 Hop . | . . . Pick Up 19 | 7 11 1 Fast Attach 13 | 7 6 . Attach 8 | . 7 1 Detach 1 | 1 . . Swap 7 | . 5 2 Drop 10 | . 9 1 Fire 97 | 18 70 9 Melee . | . . . Ram . | . . . Kick . | . . . Crush . | . . . Escape Stasis . | . . . Rewire . | . . . Trap . | . . . Miscellaneous . | . . . Route ------- -11/Scrapyard -10/Materials (discovered 2 exits: [*Mat] / [*Sub]) -10/Subcaves History --------- Turn | Location | Event 40 | -11/Scrapyard | Discovered new exit (range 14) 133 | -11/Scrapyard | Entered Materials 307 | -10/Materials | Build established: Mutant 527 | -10/Materials | Discovered new exit (range 16) 560 | -10/Materials | Core integrity fell below 50% 703 | -10/Materials | Lost 4 parts (1p1n2w) 899 | -10/Materials | Core integrity fell below 20% 1162 | -10/Materials | Discovered new exit (range 6) 1265 | -10/Materials | Prayed at D.C.S.S. Altar Unit 1273 | -10/Materials | Entered Subcaves 1291 | -10/Subcaves | Learned Materials emergency access door positions 1302 | -10/Subcaves | Energy generation permanently improved by X0-1V1 (+10; -100 max core) 1498 | -10/Subcaves | Destroyed by HX-NF2(R) with Subdweller Laser Last Messages --------------- 01162_ EXIT=FOUND 01164_ Dropped Lrg. Matter Pod. 01165_ Dropped Med. Matter Pod. 01208_ Acquired Hammer. 01212_ Acquired Structural Scanner. 01265_ Connecting with D.C.S.S. Altar Unit... >>pray A new toy? 01266_ Dropped Structural Scanner. 01267_ Acquired Prototype Device. LOCATION=UNKNOWN AMBIENT_HEAT=-10 GOAL=ESCAPE 01291_ Acquired derelict log, extracted data. Data stored: Materials emergency access points. 01302_ X0-1V1: "Any self-respecting god will have their pound of flesh." (permanent -100 core integrity, +10 energy generation) 01333_ Dropped Hcp. Matter Pod. 01334_ Acquired Hcp. Matter Pod. 01498_ X0-1V1 snickers! Map ----- +----------------------------------------------------+ | | | | | | | | | | | | | | | | | | | | | | | | | | | ?????????????????????????????????????????????????? | | ?????????????????????????????????????????????????? | | ??????????????????????######?????????????????????? | | ??????????????????????#########??????????????????? | | ??????????????????????"" "#####?????????????????? | | ???????????????????????? ""###?????????????????? | | ???????????????????????? "###????????????????? | | ???????????????###???????$ " ###????????????????? | | ???????????????## ???????$ " "##????????????????? | | ???????????????## ???????? "##????????????????? | | ???????????????##" "? <##????????????????? | | ???????????????##" ##### <##????????????????? | | ????????????????## # @R <<##????????????????? | | ????????????????## ## <###?????????????#### | | ??????????#########<<<## <###########???????##### | | ?????????############## ############?????#### # | | ???????? ## ### < ###### ###?????### | | ??????# #### ###????## | | ??????## ##### ### ###????## | | ??????### ### ## ###?#### # | | ???????### ## ######## # | | ????????### ## ##### | | ????????# # ## ### | | ???????? # | | ????????? #### ### | | ????????# ############# ##### | | ????????## ################### ####### | | ????????### ####?????????## ### ####### | | ?????????### ??????????????## ####### | | ?????????### ???????????????## ####### | | ??????????# ???????????? ###### | | ?????????????????????????##### ## ##?## ? | | ?????????????????????????####### ## ##?## ? | | ????????????????????????????#### ## ### ?? | | ??????????????????????????????## #### ?? | | ?????????????????????????????? ? #### ??? | | ??????????????????????????? ###???????? | +----------------------------------------------------+ Best States ------------- Heat Dissipation 25 Energy Generation 20 Energy Capacity 250 Matter Stores 329 Matter Capacity 500 Sight Range 16 Terrain Scan Density 10 Evasion (%) 55 Recoil Reduction 2 Item Schematics ----------------- None Robot Schematics ------------------ None Fabricated ------------ Nothing Repaired ---------- Nothing Studied --------- None Alien Tech Used ----------------- None Achievements -------------- None Challenges ------------ None Game ------ Seed ScrapoidSupercompositeTorch Manual? 0 Play Time 00:10:56 Cumulative 149.6 hours Start 2026.09.07 @ 15:51:22 End 2026.09.07 @ 16:01:22 Sessions 1 Manual Loads 0 Difficulty Rogue Special Mode None Game No. 132 Rogue 130 Adventurer 2 Explorer 0 Win Type - Total 0 Types 0/0/0/0/0/0/0/0/0/0 Lore% 60 Gallery% 51 Achievement% 42 Wizard Run 0 Options --------- Layout 0 ASCII 0 Keyboard 0 Movement Mouse Keybinds 0 Fullscreen 2 Font 24/Smallcaps Map View 76x50 Zoom Use 0% Tactical HUD 1 Map Filters NONE Filters NONE Steam 1 RUN: c76b3241-09a1-4a42-a19c-a97585323ee4